bitfinex/quotes_ETHUSD_20251213
["timestamp","ask_amount","ask_price","bid_price","bid_amount"]
[1765643096038,0.29841342,3106.4,3105.9,0.4741]
[1765643096237,0.29841342,3106.3,3105.9,1.16546647]
[1765643096435,0.4721,3106.6,3105.9,1.16546647]
[1765643096743,0.51,3106.4,3105.9,1.16546647]
[1765643096948,0.29844726,3106.3,3105.9,1.16546647]
[1765643097155,0.51,3106.4,3105.9,1.16546647]
[1765643097351,0.29849995,3106.3,3105.9,0.69136647]
[1765643097556,0.51,3106.4,3106.1,6.43894272]
[1765643097759,0.29849964,3106.3,3106.1,6.43894272]
[1765643097926,0.51,3106.4,3106.1,6.91304272]
[1765643098126,0.29849905,3106.3,3106.2,0.4992]
[1765643098959,0.29849905,3106.3,3106.2,0.9733]
[1765643100028,0.29849905,3106.3,3106.2,3.71856771]
[1765643101386,0.77969905,3106.3,3106.1,3.21944597]
[1765643101538,0.29849905,3106.2,3106.1,3.21944597]
[1765643102371,0.77969905,3106.2,3106.0,3.21957501]
[1765643102570,0.4812,3106.2,3106.0,3.21957501]
[1765643102939,0.51,3106.4,3106.1,0.4992]
[1765643103159,0.29886347,3106.3,3106.1,0.4992]
[1765643103335,0.29886347,3106.2,3106.1,0.4992]
[1765643103538,0.29886347,3106.2,3106.1,1.397845]
[1765643103738,0.29886347,3106.2,3106.1,1.897045]
[1765643104868,0.29886347,3106.2,3106.1,5.11651636]
[1765643108363,0.29886347,3106.2,3106.1,4.64241636]
[1765643108552,0.29886347,3106.2,3106.1,4.45991636]
[1765643110340,0.78006347,3106.2,3106.1,3.96071636]
[1765643111342,0.29886347,3106.2,3106.1,3.96071636]
[1765643111558,0.29886347,3106.2,3106.1,4.45991636]
[1765643113536,0.29886347,3106.2,3106.1,4.93401636]
[1765643114041,0.29886347,3106.2,3106.1,4.45991636]
[1765643116074,0.78006347,3106.2,3106.1,3.96071636]
[1765643116496,0.78006347,3106.2,3106.0,3.21954731]
[1765643116779,0.88336347,3106.1,3106.0,3.21954731]
[1765643116961,0.41126347,3106.1,3106.0,3.21954731]
[1765643117776,0.29886347,3106.1,3106.0,3.71874731]
[1765643117968,0.29886347,3106.1,3106.0,4.19284731]
[1765643118283,0.29886347,3106.1,3106.0,5.63906847]
[1765643118851,0.509,3106.6,3106.0,5.63906847]
[1765643118852,0.001,3106.7,3106.0,19.1277935]
[1765643119055,0.29965467,3106.6,3106.1,0.6566]
[1765643119376,0.29965467,3106.5,3106.1,0.6566]
[1765643119560,0.29965467,3106.4,3106.2,0.4741]
[1765643119756,0.001,3106.7,3106.6,0.4992]
[1765643119976,0.3005857,3106.7,3106.6,0.4992]
[1765643120275,0.3005857,3106.7,3106.6,4.19225319]
[1765643120475,0.3005857,3106.7,3106.6,4.93338469]
[1765643122375,0.001,3106.7,3106.6,4.93338469]
[1765643123579,0.001,3106.7,3106.6,8.76338469]
[1765643124458,0.001,3106.7,3106.6,8.28928469]
[1765643125280,0.001,3106.7,3106.6,8.77068469]
[1765643133970,0.9836,3106.7,3106.6,7.79008469]
[1765643134180,0.9836,3106.7,3105.7,0.09444716]
[1765643134181,1.28229644,3106.7,3105.7,3.21980985]
[1765643134360,0.1837,3106.5,3105.7,3.21980985]
[1765643134772,0.4884,3106.4,3105.7,3.70120985]
[1765643135093,0.4884,3106.4,3105.8,9.65934702]
[1765643135386,0.4884,3106.4,3105.8,10.67342172]
[1765643135888,0.001,3106.7,3105.8,10.67342172]
[1765643136187,0.78715749,3106.6,3105.8,11.15482172]
[1765643136393,0.78715749,3106.5,3105.8,11.15482172]
[1765643136578,0.4884,3106.5,3105.8,11.15482172]
[1765643136895,0.4884,3106.4,3105.9,1.16432217]
[1765643140078,0.4884,3106.4,3106.0,6.43915002]
[1765643141202,0.4942,3106.1,3106.0,3.21957501]
[1765643141702,0.4884,3106.4,3106.0,6.43915002]
[1765643145102,0.001,3106.7,3106.0,6.43915002]
[1765643145304,0.78731639,3106.6,3106.0,6.43915002]
[1765643145603,0.4942,3106.1,3106.0,3.21957501]
[1765643145773,0.4942,3106.1,3106.0,4.3019212]
[1765643145973,0.4884,3106.4,3106.0,7.52149621]
[1765643147593,0.4884,3106.4,3106.0,8.00289621]
[1765643148997,0.001,3106.7,3106.3,0.4599]
[1765643149185,0.78742392,3106.6,3106.1,0.1834]
[1765643149388,0.29902392,3106.5,3106.1,1.27584712]
[1765643149573,0.001,3106.7,3106.3,6.43852814]
[1765643149775,0.29900878,3106.6,3106.3,6.43852814]
[1765643149978,0.29900878,3106.5,3106.3,6.43852814]
[1765643150172,0.4894,3106.7,3106.3,6.43852814]
[1765643150476,0.29900153,3106.6,3106.3,6.43852814]
[1765643150676,0.29900153,3106.5,3106.3,6.43852814]
[1765643150878,0.4894,3106.7,3106.3,7.73950567]
[1765643151117,0.29900156,3106.6,3106.4,0.4599]
[1765643151287,0.29900156,3106.5,3106.3,6.43852814]
[1765643151492,0.4884,3106.6,3106.3,6.43852814]
[1765643151810,0.29899751,3106.5,3106.2,6.43873542]
[1765643152008,0.4884,3106.6,3106.2,6.43873542]
[1765643152211,0.29899749,3106.5,3106.2,6.43873542]
[1765643152381,0.4884,3106.6,3106.2,7.14908896]
[1765643152575,0.29899835,3106.5,3106.2,7.14908896]
[1765643152774,0.4884,3106.6,3106.2,7.14908896]
[1765643153008,0.29899835,3106.5,3106.2,7.14908896]
[1765643153209,0.4884,3106.6,3106.2,7.14908896]
[1765643153387,0.29901625,3106.5,3106.2,7.14908896]
[1765643153587,0.4884,3106.6,3106.4,3.21916044]
[1765643153811,0.29901628,3106.5,3106.4,3.21916044]
[1765643154012,0.79321628,3106.5,3106.4,3.21916044]
[1765643154315,1.28161628,3106.5,3106.3,3.21921872]
[1765643154502,0.6721,3106.4,3106.3,3.21921872]
[1765643155612,0.6721,3106.4,3106.0,6.43915002]
[1765643155813,0.6721,3106.4,3106.1,1.01088967]
[1765643156112,0.1837,3106.4,3106.1,1.01088967]
[1765643156409,0.451,3106.2,3106.1,1.01088967]
[1765643156908,0.4785,3106.4,3106.1,1.01088967]
[1765643157084,0.4785,3106.4,3106.1,1.48768967]
[1765643157408,0.001,3106.7,3106.3,0.4768]
[1765643157609,0.001,3106.7,3106.6,3.69575319]
[1765643157814,0.30014093,3106.7,3106.6,3.69575319]
[1765643160716,1.22964093,3106.7,3106.3,3.21924073]
[1765643160904,0.1862,3106.5,3106.4,3.21913724]
[1765643161104,0.48534093,3106.5,3106.4,3.21913724]
[1765643161909,0.48534093,3106.5,3106.2,6.43872226]
[1765643162110,0.29914093,3106.4,3106.2,6.88882226]
[1765643162402,0.1862,3106.5,3106.2,6.88882226]
[1765643162606,0.29952627,3106.4,3106.2,6.88882226]
[1765643162810,0.001,3106.7,3106.2,6.88882226]
[1765643163007,0.29952636,3106.6,3106.3,0.4768]
[1765643163191,0.29952636,3106.5,3106.3,0.4768]
[1765643163391,0.29952636,3106.4,3106.3,0.4768]
[1765643164732,0.29952636,3106.4,3106.3,3.69606407]
[1765643168296,0.29971373,3106.4,3106.3,3.69606407]
[1765643173132,1.22921373,3106.4,3106.3,3.21926407]
[1765643174434,1.22921373,3106.4,3106.2,3.21932286]
[1765643174737,1.47341373,3106.3,3105.5,0.4501]
[1765643175035,0.29971373,3106.2,3105.6,0.36702462]
[1765643175235,0.29971373,3106.1,3105.6,0.36702462]
[1765643175394,0.4785,3106.2,3105.8,3.21975527]
[1765643175599,0.29973459,3106.1,3105.8,3.21975527]
[1765643175850,0.4785,3106.2,3105.7,6.43977202]
[1765643176128,0.509,3106.3,3105.6,0.36702462]
[1765643176129,0.80872771,3106.1,3105.6,9.65992896]
[1765643176343,0.29972771,3106.0,3105.7,1.44829176]
[1765643176504,0.509,3106.4,3105.7,1.44829176]
[1765643176705,0.29966922,3106.3,3105.8,0.4501]
[1765643176926,0.29966922,3106.2,3105.8,0.4501]
[1765643177234,0.29966922,3106.1,3105.9,0.03219678]
[1765643177540,0.509,3106.6,3105.9,0.03219678]
[1765643177828,0.29967189,3106.5,3106.1,6.43894272]
[1765643178033,0.29967189,3106.4,3106.2,0.03219367]
[1765643178232,0.29967189,3106.3,3106.2,0.03219367]
[1765643178634,0.29967189,3106.3,3106.2,0.50899367]
[1765643179100,0.29967189,3106.3,3106.2,0.4768]
[1765643181034,0.29967189,3106.3,3106.2,3.69616771]
[1765643182241,0.29967189,3106.3,3106.2,4.52485201]
[1765643182528,0.29970096,3106.3,3106.2,4.52485201]
[1765643183408,0.29970096,3106.3,3106.2,4.97495201]
[1765643184230,0.9885,3106.7,3106.2,8.19431972]
[1765643184417,0.29970035,3106.6,3106.2,8.19431972]
[1765643184626,0.29970035,3106.5,3106.3,1.15950486]
[1765643184935,0.9885,3106.7,3106.3,1.15950486]
[1765643185142,0.29970616,3106.6,3106.3,7.598033]
[1765643185328,0.29970616,3106.5,3106.3,7.598033]
[1765643185523,0.29970616,3106.4,3106.3,4.37876893]
[1765643185928,0.29970616,3106.4,3106.3,4.85106893]
[1765643189947,0.29970616,3106.4,3106.3,5.31026893]
[1765643191347,0.29970616,3106.4,3106.3,4.85106893]
[1765643192640,0.29970616,3106.4,3106.3,5.31026893]
[1765643193342,1.24060616,3106.4,3106.3,4.37876893]
[1765643193513,1.24060616,3106.4,3106.3,3.21926407]
[1765643195519,0.75060616,3106.4,3106.3,3.21926407]
[1765643198756,0.29970616,3106.4,3106.3,3.69156407]
[1765643200753,0.29970616,3106.4,3106.3,4.33506407]
[1765643201627,0.29970616,3106.4,3106.3,4.79426407]
[1765643201830,0.29970616,3106.4,3106.3,5.97862752]
[1765643203730,0.001,3106.7,3106.3,5.97862752]
[1765643203937,0.29967029,3106.6,3106.4,0.4592]
[1765643204119,0.29967029,3106.5,3106.3,8.73869159]
[1765643204325,0.29967029,3106.4,3106.3,4.86282752]
[1765643204819,0.29967029,3106.4,3106.3,5.33512752]
[1765643205322,0.29967029,3106.4,3106.3,5.82612752]
[1765643206736,0.29967029,3106.4,3106.3,9.65612752]
[1765643210561,0.29967029,3106.4,3106.3,9.19692752]
[1765643210760,0.29967029,3106.4,3106.3,9.65612752]
[1765643210932,0.29967029,3106.4,3106.3,9.19692752]
[1765643211466,1.24057029,3106.4,3106.3,8.72462752]
[1765643211753,1.24057029,3106.4,3106.3,7.54026407]
[1765643212060,0.75057029,3106.4,3106.3,7.54026407]
[1765643212659,0.75057029,3106.4,3106.3,3.71026407]
[1765643214369,0.29967029,3106.4,3106.3,4.18256407]
[1765643214535,0.29967029,3106.4,3106.3,3.71026407]
[1765643216335,0.29967029,3106.4,3106.3,4.38012335]
[1765643216535,0.29967029,3106.4,3106.3,3.71026407]
[1765643216959,0.76977029,3106.4,3106.3,3.71026407]
[1765643217162,1.24717029,3106.4,3106.3,3.71026407]
[1765643217359,0.76977029,3106.4,3106.3,3.71026407]
[1765643219264,1.24717029,3106.4,3106.3,3.71026407]
[1765643221741,1.24717029,3106.4,3106.3,3.21926407]
[1765643222942,0.76977029,3106.4,3106.3,3.21926407]
[1765643223877,0.29967029,3106.4,3106.3,3.69956407]
[1765643224211,0.29967029,3106.4,3106.3,5.2118613]
[1765643224537,0.29967029,3106.4,3106.3,5.6892613]
[1765643227678,0.29967029,3106.4,3106.3,6.1856613]
[1765643227991,0.29967029,3106.4,3106.3,5.6892613]
[1765643228150,0.76977029,3106.4,3106.3,3.69666407]
[1765643228848,1.24717029,3106.4,3106.3,3.69666407]
[1765643229585,0.76977029,3106.4,3106.3,3.69666407]
[1765643231065,0.76977029,3106.4,3106.3,3.21926407]
[1765643231489,1.24717029,3106.4,3106.3,3.21926407]
[1765643231975,0.76977029,3106.4,3106.3,3.21926407]
[1765643232154,1.24717029,3106.4,3106.3,3.21926407]
[1765643235378,0.29967029,3106.4,3106.3,3.21926407]
[1765643235583,0.29967029,3106.4,3106.3,4.80340452]
[1765643236790,0.76977029,3106.4,3106.3,4.32310452]
[1765643236977,0.76977029,3106.4,3106.3,3.21926407]
[1765643237283,1.24717029,3106.4,3106.3,3.21926407]
[1765643238089,0.76977029,3106.4,3106.3,3.21926407]
[1765643238689,0.29967029,3106.4,3106.3,3.21926407]
[1765643239207,0.29967029,3106.4,3106.3,3.69956407]
[1765643240781,0.29967029,3106.4,3106.3,3.21926407]
[1765643240981,0.76977029,3106.4,3106.3,3.21926407]
[1765643241492,0.29967029,3106.4,3106.3,3.21926407]
[1765643241791,0.29967029,3106.4,3106.3,3.71026407]
[1765643242294,0.29967029,3106.4,3106.3,4.18936407]
[1765643242492,0.29967029,3106.4,3106.3,3.71026407]
[1765643244496,0.75289159,3106.4,3106.3,3.21926407]
[1765643244990,1.20909159,3106.4,3106.3,3.21926407]
[1765643245596,0.75289159,3106.4,3106.3,3.21926407]
[1765643246296,1.20909159,3106.4,3106.2,7.52674277]
[1765643246485,0.91029159,3106.3,3106.2,7.04934277]
[1765643246682,0.91029159,3106.3,3106.0,0.75289159]
[1765643246906,0.4499,3106.1,3106.0,0.75289159]
[1765643247090,0.4499,3106.1,3105.8,3.21974101]
[1765643247091,1.20609159,3106.1,3105.8,3.21974101]
[1765643247287,0.157,3105.9,3105.8,3.21974101]
[1765643247496,0.45699159,3105.9,3105.8,3.21974101]
[1765643247790,0.91319159,3105.9,3105.8,3.21974101]
[1765643248172,0.6132,3105.9,3105.8,3.21974101]
[1765643248799,0.6132,3105.9,3105.7,3.21988101]
[1765643248994,0.9032,3105.8,3105.7,3.21988101]
[1765643252007,0.9652,3106.1,3105.7,6.91896702]
[1765643252304,0.29968738,3106.0,3105.7,6.91896702]
[1765643252499,0.4562,3106.0,3105.7,6.91896702]
[1765643253506,0.4562,3106.0,3105.7,7.75182288]
[1765643254908,0.509,3106.1,3105.8,0.03219782]
[1765643255105,0.4562,3106.1,3105.7,8.25112288]
[1765643255410,0.509,3106.2,3105.9,6.43935734]
[1765643255609,0.29960641,3106.1,3105.9,6.43935734]
[1765643255799,0.9652,3106.2,3105.9,6.43935734]
[1765643255995,0.29960641,3106.1,3106.0,0.03219575]
[1765643256309,0.29960641,3106.1,3105.9,6.93865734]
[1765643256482,0.509,3106.3,3106.0,0.4792]
[1765643256678,0.29960453,3106.2,3106.0,0.4792]
[1765643256886,0.29960453,3106.1,3106.0,0.4792]
[1765643257103,0.29960453,3106.1,3106.0,3.69877501]
[1765643258006,1.23820453,3106.1,3106.0,3.21957501]
[1765643259211,1.23820453,3106.1,3105.9,3.21967867]
[1765643259391,0.4562,3106.0,3105.9,3.21967867]
[1765643259588,0.78201418,3106.0,3105.9,3.21967867]
[1765643259814,1.23821418,3106.0,3105.9,3.21967867]
[1765643263016,1.23821418,3106.0,3105.7,6.43975726]
[1765643263216,0.4824,3105.8,3105.7,3.21987125]
[1765643263387,0.4824,3105.8,3105.7,4.24685764]
[1765643266223,0.9386,3105.8,3105.7,4.24685764]
[1765643267022,0.4562,3106.1,3105.7,7.94594365]
[1765643267228,0.29965296,3106.0,3105.7,7.94594365]
[1765643267392,0.4562,3106.1,3105.7,8.44524365]
[1765643267592,0.96805096,3106.7,3105.7,8.44524365]
[1765643267593,0.509,3106.2,3106.0,0.4792]
[1765643267927,0.509,3106.2,3106.1,3.21947136]
[1765643268097,0.80866697,3106.2,3106.1,3.21947136]
[1765643268303,1.29106697,3106.2,3106.1,3.21947136]
[1765643269097,1.74726697,3106.2,3105.9,6.43932911]
[1765643269297,0.1249,3106.0,3105.9,3.21965044]
[1765643269607,0.42456697,3106.0,3105.9,3.21965044]
[1765643269811,0.88076697,3106.0,3105.9,3.21965044]
[1765643273034,0.88089852,3106.0,3105.9,3.21965044]
[1765643274247,0.42469852,3106.0,3105.9,3.21965044]
[1765643274443,0.29979852,3106.0,3105.9,4.44599212]
[1765643274617,0.29979852,3106.0,3105.9,4.92519212]
[1765643274938,0.29979852,3106.0,3105.9,5.42339212]
[1765643275716,0.29979852,3106.0,3105.9,4.92519212]
[1765643278739,0.29979852,3106.0,3105.9,5.42339212]
[1765643278937,0.29979852,3106.0,3105.9,4.92519212]
[1765643287952,0.77119852,3106.0,3105.9,4.44599212]
[1765643288156,1.22769852,3106.0,3105.9,3.21965044]
[1765643288453,1.22769852,3106.0,3105.8,3.83]
[1765643288619,0.89179852,3105.9,3105.5,3.22009096]
[1765643288826,0.76779852,3105.8,3105.6,3.21994406]
[1765643289021,0.29979852,3105.7,3105.6,3.21994406]
[1765643289227,0.89509852,3105.7,3105.6,3.21994406]
[1765643289756,0.89509852,3105.7,3105.3,6.44060154]
[1765643289953,0.29979852,3105.6,3105.3,8.00547045]
[1765643290158,0.5953,3105.7,3105.3,8.00547045]
[1765643290458,0.30014068,3105.6,3105.3,8.00547045]
[1765643290760,0.5953,3105.7,3105.3,8.00547045]
[1765643290943,0.30006411,3105.6,3105.3,8.50367045]
[1765643291127,0.1388,3105.7,3105.4,1.82827775]
[1765643291455,0.30005985,3105.6,3105.4,1.82827775]
[1765643291652,0.9655,3105.9,3105.5,0.4982]
[1765643291858,0.30000817,3105.8,3105.6,3.21998969]
[1765643292048,0.30000817,3105.7,3105.6,3.21998969]
[1765643292548,0.30000817,3105.7,3105.6,3.68208969]
[1765643292749,0.30000817,3105.7,3105.6,4.5551272]
[1765643293240,0.30000817,3105.7,3105.6,5.0533272]
[1765643295351,0.5953,3106.4,3105.6,4.5551272]
[1765643295652,0.3000323,3106.3,3105.8,0.4621]
[1765643295842,0.3000323,3106.2,3105.8,1.61143066]
[1765643296043,0.3000323,3106.1,3105.9,0.4982]
[1765643296249,0.001,3106.7,3105.9,0.4982]
[1765643296448,0.30004235,3106.6,3105.9,0.4982]
[1765643296763,0.30004235,3106.5,3105.9,0.72733307]
[1765643296959,0.30004235,3106.4,3106.0,0.966892]
[1765643297262,0.30004235,3106.3,3106.0,1.465092]
[1765643297461,0.30004235,3106.2,3106.1,3.21947136]
[1765643298167,0.30004235,3106.2,3106.1,4.17977136]
[1765643299366,0.30004235,3106.2,3106.1,5.03930906]
[1765643301064,0.30004235,3106.2,3106.1,4.54110906]
[1765643301573,1.22794235,3106.2,3106.0,3.21954269]
[1765643301752,0.43554235,3106.1,3106.0,7.04954269]
[1765643301945,0.89964235,3106.1,3106.0,7.04954269]
[1765643302766,0.89964235,3106.1,3106.0,3.83]
[1765643304569,0.89964235,3106.1,3106.0,7.04957501]
[1765643306976,0.30004235,3106.1,3106.0,7.52857501]
[1765643307140,0.30004235,3106.1,3106.0,9.02341019]
[1765643307475,0.30004235,3106.1,3106.0,8.55551019]
[1765643307675,0.77344235,3106.1,3106.0,3.21957501]
[1765643308248,0.30004235,3106.1,3106.0,3.21957501]
[1765643308476,0.30004235,3106.1,3106.0,3.69857501]
[1765643310959,0.30004235,3106.1,3106.0,3.21957501]
[1765643311179,1.27214235,3106.1,3106.0,3.21957501]
[1765643312171,1.27214235,3106.1,3105.9,7.04967345]
[1765643312375,0.89044235,3106.0,3105.9,7.04967345]
[1765643312579,0.89044235,3106.0,3105.9,3.21967345]
[1765643313588,0.89044235,3106.0,3105.8,3.21978234]
[1765643313759,0.5904,3106.0,3105.8,3.21978234]
[1765643314059,0.4696,3105.9,3105.8,3.21978234]
[1765643314259,0.4696,3105.9,3105.8,4.34345162]
[1765643314885,0.9683,3105.9,3105.8,4.34345162]
[1765643316284,0.4696,3105.9,3105.8,4.34345162]
[1765643316585,1.0067,3106.2,3105.8,8.04223396]
[1765643316760,0.29964266,3106.1,3105.8,8.04223396]
[1765643317055,0.29964266,3106.0,3105.8,8.04223396]
[1765643317254,1.0067,3106.2,3105.8,8.04223396]
[1765643317455,0.79851284,3106.1,3105.8,3.69878234]
[1765643317691,0.4734,3105.9,3105.8,3.21978234]
[1765643317986,0.4734,3105.9,3105.7,3.21988329]
[1765643318190,0.0917,3105.8,3105.7,3.21988329]
[1765643318394,0.0917,3105.8,3105.7,3.71858329]
[1765643320994,0.5904,3105.8,3105.7,3.71858329]
[1765643321493,0.0917,3105.8,3105.7,3.71858329]
[1765643321817,0.0917,3105.8,3105.7,4.795441]
[1765643321992,0.4987,3106.0,3105.7,8.49432701]
[1765643323497,1.0067,3106.2,3105.7,8.49432701]
[1765643323792,0.29979638,3106.1,3105.7,8.49432701]
[1765643323996,0.29979638,3106.0,3105.7,8.49432701]
[1765643324168,0.4987,3106.1,3105.7,8.49432701]
[1765643324369,0.2997865,3106.0,3105.7,8.49432701]
[1765643324569,0.4987,3106.1,3105.8,1.2324327]
[1765643324798,0.29984272,3106.0,3105.7,8.96222701]
[1765643325008,0.4987,3106.1,3105.7,8.96222701]
[1765643325190,0.29984271,3106.0,3105.7,8.96222701]
[1765643325386,0.29991372,3105.9,3105.7,8.96222701]
[1765643325691,0.4987,3106.1,3105.7,8.96222701]
[1765643325887,0.29991338,3106.0,3105.7,8.96222701]
[1765643326091,0.29991338,3105.9,3105.7,8.96222701]
[1765643326292,0.4987,3106.1,3105.8,0.82180451]
[1765643326595,0.29992214,3106.0,3105.8,0.479]
[1765643326790,0.4987,3106.1,3105.8,0.479]
[1765643327090,0.29992239,3106.0,3105.9,3.21967867]
[1765643328191,0.77332239,3106.0,3105.9,3.21967867]
[1765643329805,0.77332239,3106.0,3105.8,3.21978234]
[1765643329995,0.29992239,3105.9,3105.8,3.21978234]
[1765643330499,0.29992239,3105.9,3105.8,4.3434089]
[1765643330703,0.29992239,3105.9,3105.8,4.8224089]
[1765643331503,0.29992239,3105.9,3105.8,5.2903089]
[1765643331679,0.29992239,3105.9,3105.8,5.7993089]
[1765643334192,0.508,3106.3,3105.8,9.01909124]
[1765643334378,0.30004287,3106.2,3105.8,9.01909124]
[1765643334704,0.30004287,3106.1,3105.9,0.96369865]
[1765643334882,0.30003228,3106.0,3105.9,0.96369865]
[1765643335088,0.30003228,3106.0,3105.9,1.44299865]
[1765643335299,0.30003228,3106.0,3105.9,1.90329865]
[1765643336204,0.30003228,3106.0,3105.9,5.12297732]
[1765643336838,0.30003228,3106.0,3105.9,4.64367732]
[1765643339509,0.509,3106.7,3105.9,7.86335599]
[1765643339728,0.30010619,3106.6,3106.0,0.4793]
[1765643340009,0.30010619,3106.5,3106.0,0.4793]
[1765643340227,0.30010619,3106.4,3106.1,0.1878]
[1765643340391,0.30010619,3106.3,3106.2,3.21936771]
[1765643340596,0.30010619,3106.3,3106.2,3.69866771]
[1765643340894,0.30010619,3106.3,3106.2,4.15896771]
[1765643341277,0.30010619,3106.3,3106.2,3.67966771]
[1765643341478,0.30010619,3106.3,3106.2,5.25065215]
[1765643342104,0.30010619,3106.3,3106.2,9.08065215]
[1765643342300,0.001,3106.7,3106.2,15.51938757]
[1765643342500,0.001,3106.7,3106.6,0.4603]
[1765643342705,0.30098352,3106.7,3106.6,0.4603]
[1765643342906,0.30098352,3106.7,3106.6,0.88933]
[1765643343412,0.30098352,3106.7,3106.6,1.85609114]
[1765643343915,0.30098352,3106.7,3106.6,5.07504433]
[1765643344732,0.001,3106.7,3106.6,5.55434433]
[1765643349408,0.001,3106.7,3106.6,5.07504433]
[1765643352098,0.001,3106.7,3106.6,8.90504433]
[1765643352644,0.001,3106.7,3106.6,9.38434433]
[1765643353331,0.001,3106.7,3106.6,10.37032362]
[1765643360139,0.001,3106.7,3106.6,9.48551962]
[1765643360448,0.001,3106.7,3106.6,10.47281962]
[1765643367954,0.001,3106.7,3106.6,10.87832362]
[1765643372251,0.001,3106.7,3106.6,14.26932362]
[1765643372457,0.001,3106.7,3106.6,10.87832362]
[1765643375936,0.001,3107.2,3106.9,7.42326403]
[1765643376138,0.001,3107.2,3107.0,1.95510029]
[1765643376834,0.001,3107.2,3107.1,0.12885497]
[1765643377050,0.4965,3107.2,3107.1,0.12885497]
[1765643377254,0.9653,3107.2,3107.1,0.12885497]
[1765643377764,0.9653,3107.2,3107.0,1.95510029]
[1765643377975,0.5774,3107.1,3107.0,5.75411436]
[1765643378461,0.0819,3107.1,3107.0,5.75411436]
[1765643380072,0.001,3107.2,3107.0,5.75411436]
[1765643380250,0.4965,3107.2,3107.0,5.75411436]
[1765643381342,0.4688,3107.1,3107.0,5.75411436]
[1765643381842,0.4688,3107.1,3107.0,9.58311436]
[1765643382044,0.9643,3107.1,3107.0,9.58311436]
[1765643383942,0.4688,3107.1,3107.0,9.58311436]
[1765643384344,0.4688,3107.1,3107.0,9.07511436]
[1765643384647,0.4688,3107.1,3107.0,9.58311436]
[1765643385274,0.9643,3107.1,3107.0,9.58311436]
[1765643385474,0.4688,3107.1,3107.0,9.58311436]
[1765643385772,0.9643,3107.1,3107.0,9.58311436]
[1765643386881,0.9643,3107.1,3107.0,9.07511436]
[1765643387078,0.9643,3107.1,3107.0,9.58311436]
[1765643389182,0.9643,3107.1,3107.0,7.55553878]
[1765643390677,0.9643,3107.1,3107.0,7.04753878]
[1765643391058,0.9643,3107.1,3106.5,3.829]
[1765643391374,0.5774,3107.0,3106.4,0.508]
[1765643391671,0.4955,3107.0,3106.5,0.9643]
[1765643391889,0.4955,3107.0,3106.4,0.508]
[1765643392051,0.6618,3106.5,3106.4,3.72716044]
[1765643392249,0.4688,3106.5,3106.4,4.23574496]
[1765643392664,0.9643,3106.5,3106.4,4.23574496]
[1765643395464,0.4688,3106.5,3106.4,4.23574496]
[1765643398587,0.4827,3106.7,3106.4,7.4549054]
[1765643399669,0.4856,3106.5,3106.4,4.23574496]
[1765643399867,0.4856,3106.5,3106.4,3.21916044]
[1765643400095,0.9683,3106.5,3106.4,3.21916044]
[1765643401673,0.9683,3106.5,3106.3,3.21921675]
[1765643401873,0.4856,3106.5,3106.3,3.21921675]
[1765643402306,0.4827,3106.7,3106.4,0.4744]
[1765643402598,0.4827,3106.7,3106.4,4.3034]
[1765643402992,0.4856,3106.5,3106.4,3.829]
[1765643403367,0.9683,3106.5,3106.4,3.829]
[1765643403768,0.9683,3106.5,3106.4,7.04816044]
[1765643405170,0.9683,3106.5,3106.0,0.4955]
[1765643405171,0.9683,3106.5,3106.2,3.21935405]
[1765643405369,0.4856,3106.1,3105.9,3.21966887]
[1765643405578,0.4827,3106.4,3105.9,6.43934754]
[1765643405913,0.4827,3106.3,3105.9,6.43934754]
[1765643406397,0.4856,3106.0,3105.9,3.21966887]
[1765643406694,0.4827,3106.6,3106.2,0.4744]
[1765643406926,0.4827,3106.8,3106.3,0.03219264]
[1765643407117,0.4837,3107.2,3106.3,0.03219264]
[1765643407299,0.4837,3107.2,3106.7,0.4744]
[1765643407811,0.4837,3107.2,3106.8,6.43749194]
[1765643408181,0.4837,3107.2,3106.8,9.65623791]
[1765643408401,0.4837,3107.2,3106.9,0.96562379]
[1765643408900,0.4856,3107.0,3106.9,0.96562379]
[1765643409100,0.4837,3107.2,3106.9,0.96562379]
[1765643410175,0.4837,3107.2,3107.0,3.21853878]
[1765643410876,0.4856,3107.1,3107.0,3.21853878]
[1765643411806,0.9683,3107.1,3107.0,3.21853878]
[1765643414277,0.9683,3107.1,3106.6,7.55589248]
[1765643414278,0.9683,3107.1,3106.7,6.43769916]
[1765643414478,0.4827,3107.0,3106.7,7.83705832]
[1765643414677,0.4856,3106.8,3106.7,4.61820874]
[1765643414886,0.4827,3107.0,3106.7,6.43769916]
[1765643420407,0.4827,3107.0,3106.8,3.829]
[1765643422214,0.1833,3106.9,3106.8,3.829]
[1765643422393,0.6647,3106.9,3106.8,7.04770658]
[1765643422581,1.1495,3106.9,3106.8,7.04770658]
[1765643426414,1.1495,3106.9,3106.5,6.43811362]
[1765643426615,0.0915,3106.7,3106.5,6.43811362]
[1765643426917,0.4875,3106.6,3106.5,3.21905681]
[1765643429504,0.9623,3106.6,3106.5,3.21905681]
[1765643431828,0.9623,3106.6,3106.3,6.43842885]
[1765643432012,0.0954,3106.4,3106.3,3.21916478]
[1765643432609,0.5702,3106.4,3106.2,3.21933034]
[1765643432810,0.4748,3106.4,3106.2,3.21933034]
[1765643433027,0.4901,3106.3,3106.2,3.21933034]
[1765643433599,0.9649,3106.3,3106.2,3.21933034]
[1765643433828,0.9649,3106.3,3105.9,9.65903601]
[1765643434034,0.1833,3106.9,3106.2,0.4835]
[1765643434035,0.4748,3106.5,3106.2,0.4835]
[1765643435834,0.1833,3106.9,3106.3,3.21926407]
[1765643436007,0.4748,3106.7,3106.3,6.43852814]
[1765643437843,0.4748,3106.7,3106.2,6.43873542]
[1765643439311,0.4748,3106.7,3106.2,6.91163542]
[1765643439612,0.4748,3106.7,3106.2,8.09784794]
[1765643440016,0.4748,3106.7,3106.2,7.62494794]
[1765643440921,0.4901,3106.3,3106.0,3.91079885]
[1765643441121,0.0929,3106.1,3105.5,0.58047529]
[1765643441423,0.4861,3105.9,3105.6,6.43997938]
[1765643441743,0.9609,3105.9,3105.6,6.43997938]
[1765643442061,0.9609,3105.9,3105.7,0.74069711]
[1765643442425,0.5716,3105.8,3105.7,0.74069711]
[1765643444026,0.5716,3105.8,3105.7,3.96058312]
[1765643445256,0.5716,3105.8,3105.7,3.21988601]
[1765643446259,0.5716,3105.8,3105.5,6.44018676]
[1765643446482,0.4822,3105.7,3105.5,6.44018676]
[1765643447252,0.1007,3105.6,3105.5,3.22009338]
[1765643447622,0.5755,3105.6,3105.5,3.22009338]
[1765643449657,0.5755,3105.6,3105.3,6.44254056]